[Event "1000GM Schev-C-C February 2024"]
[Site "Santa Clara"]
[Date "2024.02.25"]
[Round "4.2"]
[White "Garcia Lopez, Miguel Angel"]
[Black "Yang, Maxwell"]
[Result "1-0"]
[ECO "B87"]
[WhiteElo "2262"]
[BlackElo "1946"]
[Annotator "TA"]
[PlyCount "61"]
[EventDate "2024.02.13"]
[EventType "schev"]
[EventCountry "USA"]
[SourceTitle "playchess.com"]
[Source "ChessBase"]
[SourceQuality "1"]
[TimeControl "5400+30"]

{[%evp 20,61,127,125,374,363,382,394,387,387,396,402,440,437,440,414,445,445,492,495,507,501,664,674,820,767,906,855,1073,1057,1302,1270,2146,2114,3696,2709,29985,29986,29988,29989,29991,29991,29991,29992]} 1. e4 {[%emt 0:02:25]} c5 {[%emt 0:01:44]} 2. Nf3 {[%emt 0:00:12]} d6 {[%emt 0:00:03]} 3. Nc3 {[%emt 0:00:06]} Nf6 {[%emt 0:00:04]} 4. Bc4 {[%emt 0:00:11]} a6 {[%emt 0:00:05]} 5. d4 {[%emt 0:00:07]} cxd4 {[%emt 0:00:05]} 6. Nxd4 {[%emt 0:00:06]} e6 {[%emt 0:00:04]} 7. Bb3 {[%emt 0:00:11]} b5 {[%emt 0:00:25]} 8. Bg5 {[%emt 0:00:10]} Nbd7 {[%emt 0:01:46]} 9. O-O {[%emt 0:08:20]} Nc5 {[%emt 0:02:18]} 10. Re1 {[%emt 0:00:23]} Bb7 {[%emt 0:05:16]} 11. Bd5 {[%emt 0:00:13] [#] Threatens to win with Bxb7. White is more active.} Bxd5 {[%emt 0:28:24]} (11... exd5 12. exd5+ Kd7 (12... Be7 $2 13. Bxf6 gxf6 14. Nf5 $18) 13. a3) (11... Be7 $16) 12. exd5 $18 {[%emt 0:01:31]} e5 {[%emt 0:13:14]} 13. Nc6 {[%emt 0:02:45] Dodges Be7} Qc7 {[%emt 0:01:33] White is winning.} 14. Bxf6 {[%emt 0:05:35]} gxf6 {[%emt 0:00:17]} 15. b4 {[%emt 0:01:21]} Nd7 {[%emt 0:04:03]} 16. Qf3 {[%emt 0:01:23]} Rg8 {[%emt 0:03:30]} 17. Ne4 {[%emt 0:01:33]} Rg6 {[%emt 0:17:37]} 18. h4 {[%emt 0:01:14]} h5 {[%emt 0:00:30]} 19. a4 {[%emt 0:04:42]} ({Not} 19. Qxh5 Nb6 20. Qf3 Nxd5 $18) 19... bxa4 {[%emt 0:04:05]} 20. c4 {[%emt 0:01:15]} Bg7 {[%emt 0:03:12]} 21. c5 {[%emt 0:03:51]} dxc5 {[%emt 0:04:19]} 22. bxc5 {[%emt 0:00:22][%cal Bb4c5,Bc5c6,Bc6c7][%mdl 32]} Kf8 {[%emt 0:00:17] [#]} 23. Ne7 $1 {[%emt 0:03:06][%mdl 512] A dynamic duo of knights.} Rg4 {[%emt 0:02:00]} (23... Nxc5 24. Nxg6+) 24. d6 {[%emt 0:00:21]} Qd8 {[%emt 0:01:44]} 25. c6 {[%emt 0:00:59]} Nb6 {[%emt 0:03:28]} 26. c7 {[%emt 0:00:23]} Qd7 {[%emt 0:00:27]} 27. Rab1 {[%emt 0:09:37]} Rf4 {[%emt 0:01:38]} 28. Rxb6 {[%emt 0:00:49] White mates.} Rxf3 {[%emt 0:00:14]} 29. Rb8+ {[%emt 0:00:07]} Qe8 {[%emt 0:00:15]} 30. Rxa8 {[%emt 0:01:20]} Qxa8 {[%emt 0:00:08]} 31. gxf3 {[%emt 0:00:26] White took control after the opening.   Weighted Error Value: White=0.01 (flawless) /Black=0.83.  Inaccurate:     	---       	Black=1      OK:         	White=8     	Black=4} (31. c8=B $2 {too greedy.} Rd3 32. Bd7 a3 $19) 1-0

[Event "1000GM Schev-C-C February 2024"]
[Site "Santa Clara"]
[Date "2024.02.25"]
[Round "4.3"]
[White "Wu, Jayden"]
[Black "Vasquez Ramirez, Rocio"]
[Result "1/2-1/2"]
[ECO "B41"]
[WhiteElo "1814"]
[BlackElo "1999"]
[Annotator "RC"]
[PlyCount "108"]
[EventDate "2024.02.13"]
[EventType "schev"]
[EventCountry "USA"]
[SourceTitle "playchess.com"]
[Source "ChessBase"]
[SourceQuality "1"]
[TimeControl "5400+30"]

1. e4 {[%emt 0:00:03]} c5 {[%emt 0:01:30]} 2. Nf3 {[%emt 0:00:06]} e6 {[%emt 0:00:17]} 3. d4 {[%emt 0:00:06]} cxd4 {[%emt 0:00:04]} 4. Nxd4 {[%emt 0:00:04]} a6 {[%emt 0:00:03]} 5. g3 {[%emt 0:00:05]} b5 {[%emt 0:00:48]} 6. Bg2 {[%emt 0:00:24]} Bb7 {[%emt 0:00:00]} 7. O-O {[%emt 0:04:34]} Nc6 {[%emt 0:05:00]} 8. Nc3 {[%emt 0:04:57]} Qb6 {[%emt 0:00:36]} 9. Nb3 {[%emt 0:10:06]} Ne5 {[%emt 0:02:47]} 10. a4 {[%emt 0:18:48]} Nc4 {[%emt 0:09:16]} 11. Nd2 {[%emt 0:07:47]} Rc8 {[%emt 0:09:37]} 12. Nxc4 {[%emt 0:01:00]} Rxc4 {[%emt 0:00:07]} 13. axb5 {[%emt 0:06:38]} axb5 {[%emt 0:00:06]} 14. e5 {[%emt 0:06:12]} Bxg2 {[%emt 0:31:10]} 15. Kxg2 {[%emt 0:00:07]} Qc6+ {[%emt 0:00:01]} 16. Qf3 {[%emt 0:08:00]} f6 {[%emt 0:09:02]} 17. Qxc6 {[%emt 0:02:21]} dxc6 {[%emt 0:01:44]} 18. exf6 {[%emt 0:11:43]} Nxf6 {[%emt 0:01:54]} 19. Re1 {[%emt 0:02:56]} b4 {[%emt 0:01:22]} 20. Ne2 {[%emt 0:00:45]} Kf7 {[%emt 0:08:02]} 21. Ra7+ {[%emt 0:03:53]} Be7 {[%emt 0:02:51]} 22. b3 {[%emt 0:02:01]} Rxc2 {[%emt 0:00:17]} 23. Nd4 {[%emt 0:00:07]} Rc3 {[%emt 0:01:47]} 24. Bd2 {[%emt 0:00:48]} Rd3 {[%emt 0:02:18]} 25. Nxc6 {[%emt 0:01:26]} Rxd2 {[%emt 0:00:13]} 26. Rxe7+ {[%emt 0:00:05]} Kg6 {[%emt 0:00:07]} 27. R7xe6 {[%emt 0:01:06]} Ra8 {[%emt 0:00:59]} 28. R1e2 {[%emt 0:01:57]} Rd1 {[%emt 0:06:54]} 29. Nxb4 {[%emt 0:03:21]} Rb8 {[%emt 0:00:33]} 30. Nc2 {[%emt 0:01:00]} Rxb3 {[%emt 0:00:23]} 31. Ne3 {[%emt 0:00:19]} Rd4 {[%emt 0:01:01]} 32. Re7 {[%emt 0:01:00]} Rd7 {[%emt 0:01:22]} 33. Rxd7 {[%emt 0:00:11]} Nxd7 {[%emt 0:00:02]} 34. Nc4 {[%emt 0:00:29]} Rc3 {[%emt 0:00:43]} 35. Ne5+ {[%emt 0:00:22]} Nxe5 {[%emt 0:00:05]} 36. Rxe5 {[%emt 0:00:04]} Kf6 {[%emt 0:00:21]} 37. Re3 {[%emt 0:01:17]} Rc2 {[%emt 0:00:43]} 38. h4 {[%emt 0:00:26]} h5 {[%emt 0:01:32]} 39. Ra3 {[%emt 0:00:08]} Rc6 {[%emt 0:01:37]} 40. Ra5 {[%emt 0:01:09]} g6 {[%emt 0:00:07]} 41. Kf3 {[%emt 0:00:39]} Rb6 {[%emt 0:00:56]} 42. Ke4 {[%emt 0:01:06]} Re6+ {[%emt 0:00:39]} 43. Kf4 {[%emt 0:00:34]} Rb6 {[%emt 0:00:10]} 44. Rg5 {[%emt 0:00:59]} Rb4+ {[%emt 0:00:05]} 45. Kf3 {[%emt 0:00:05]} Rb3+ {[%emt 0:00:03]} 46. Kg2 {[%emt 0:00:05]} Rb2 {[%emt 0:00:05]} 47. Kf3 {[%emt 0:00:45]} Rb3+ {[%emt 0:00:05]} 48. Ke4 {[%emt 0:00:10]} Rb2 {[%emt 0:00:57]} 49. f4 {[%emt 0:00:25]} Rb4+ {[%emt 0:00:45]} 50. Kf3 {[%emt 0:00:12]} Rb3+ {[%emt 0:00:04]} 51. Kg2 {[%emt 0:00:04]} Rb2+ {[%emt 0:00:05]} 52. Kh3 {[%emt 0:00:12]} Rf2 {[%emt 0:01:11]} 53. Ra5 {[%emt 0:00:38]} Kg7 {[%emt 0:00:22]} 54. Ra6 {[%emt 0:00:54]} Kf7 {[%emt 0:00:29]} 1/2-1/2

[Event "1000GM Schev-C-C February 2024"]
[Site "Santa Clara"]
[Date "2024.02.25"]
[Round "4.4"]
[White "Fan, Shengjie"]
[Black "Pinzon, Jairo David"]
[Result "1/2-1/2"]
[ECO "B66"]
[WhiteElo "1578"]
[BlackElo "2114"]
[Annotator "RC"]
[PlyCount "80"]
[EventDate "2024.02.13"]
[EventType "schev"]
[EventCountry "USA"]
[SourceTitle "playchess.com"]
[Source "ChessBase"]
[SourceQuality "1"]
[TimeControl "5400+30"]

1. e4 {[%emt 0:00:14]} c5 {[%emt 0:10:22]} 2. Nf3 {[%emt 0:00:09]} d6 {[%emt 0:00:06]} 3. d4 {[%emt 0:00:05]} cxd4 {[%emt 0:00:05]} 4. Nxd4 {[%emt 0:00:05]} Nf6 {[%emt 0:00:09]} 5. Nc3 {[%emt 0:00:11]} Nc6 {[%emt 0:00:06]} 6. Bg5 {[%emt 0:00:11]} e6 {[%emt 0:00:07]} 7. Qd2 {[%emt 0:00:23]} Be7 {[%emt 0:00:08]} 8. O-O-O {[%emt 0:00:13]} Nxd4 {[%emt 0:00:08]} 9. Qxd4 {[%emt 0:00:18]} a6 {[%emt 0:00:08]} 10. f4 {[%emt 0:00:09]} b5 {[%emt 0:00:06]} 11. Bxf6 {[%emt 0:00:07]} gxf6 {[%emt 0:00:06]} 12. e5 {[%emt 0:00:15]} d5 {[%emt 0:01:12]} 13. Kb1 {[%emt 0:00:39]} Bb7 {[%emt 0:02:17]} 14. f5 {[%emt 0:11:43]} fxe5 {[%emt 0:01:39]} 15. Qxe5 {[%emt 0:00:15]} Bf6 {[%emt 0:00:53]} 16. Qg3 {[%emt 0:01:38]} Qe7 {[%emt 0:04:34]} 17. fxe6 {[%emt 0:01:07]} fxe6 {[%emt 0:00:19]} 18. Be2 {[%emt 0:04:40]} h5 {[%emt 0:08:35]} 19. Qg6+ {[%emt 0:04:58]} Qf7 {[%emt 0:01:50]} 20. Qxf7+ {[%emt 0:10:42]} Kxf7 {[%emt 0:00:10]} 21. Bf3 {[%emt 0:01:34]} Bxc3 {[%emt 0:04:43]} 22. bxc3 {[%emt 0:00:06]} Ke7 {[%emt 0:02:17]} 23. Rhe1 {[%emt 0:01:10]} Kd6 {[%emt 0:00:24]} 24. Re3 {[%emt 0:02:32]} Raf8 {[%emt 0:01:12]} 25. Rde1 {[%emt 0:02:41]} Bc8 {[%emt 0:03:09]} 26. Re5 {[%emt 0:02:06]} Rfg8 {[%emt 0:01:19]} 27. Kc1 {[%emt 0:04:19]} Rh6 {[%emt 0:02:13]} 28. Kd2 {[%emt 0:01:52]} Bd7 {[%emt 0:01:26]} 29. Kc1 {[%emt 0:04:33]} h4 {[%emt 0:06:00]} 30. h3 {[%emt 0:00:44]} Rf8 {[%emt 0:03:37]} 31. Rg5 {[%emt 0:10:57]} Rf4 {[%emt 0:01:36]} 32. a3 {[%emt 0:04:23]} Rhf6 {[%emt 0:01:35]} 33. Kb2 {[%emt 0:04:24]} Be8 {[%emt 0:06:07]} 34. Bxd5 {[%emt 0:02:36]} Bc6 {[%emt 0:07:55]} 35. Bxc6 {[%emt 0:02:02]} Kxc6 {[%emt 0:00:06]} 36. Rge5 {[%emt 0:03:46]} Kd6 {[%emt 0:00:11]} 37. R5e4 {[%emt 0:02:11]} Kd5 {[%emt 0:00:38]} 38. Re5+ {[%emt 0:01:27]} Kd6 {[%emt 0:00:07]} 39. R5e4 {[%emt 0:05:14]} Kd5 {[%emt 0:00:08]} 40. Re5+ {[%emt 0:00:39]} Kd6 {[%emt 0:32:47]} 1/2-1/2

[Event "1000GM Schev-C-C February 2024"]
[Site "Santa Clara"]
[Date "2024.02.25"]
[Round "4.5"]
[White "Zapata Campos, Lidia Karen"]
[Black "Yuan, Serena"]
[Result "1-0"]
[ECO "B12"]
[WhiteElo "2025"]
[BlackElo "1771"]
[Annotator "RC"]
[PlyCount "126"]
[EventDate "2024.02.13"]
[EventType "schev"]
[EventCountry "USA"]
[SourceTitle "playchess.com"]
[Source "ChessBase"]
[SourceQuality "1"]
[TimeControl "5400+30"]

1. e4 {[%emt 0:07:40]} c6 {[%emt 0:00:09]} 2. d4 {[%emt 0:00:06]} d5 {[%emt 0:00:07]} 3. e5 {[%emt 0:00:04]} c5 {[%emt 0:00:05]} 4. c3 {[%emt 0:00:04]} Nc6 {[%emt 0:00:08]} 5. Be3 {[%emt 0:00:13]} cxd4 {[%emt 0:02:25]} 6. cxd4 {[%emt 0:00:08]} Bf5 {[%emt 0:02:21]} 7. a3 {[%emt 0:04:33]} e6 {[%emt 0:01:33]} 8. b4 {[%emt 0:00:11]} Nge7 {[%emt 0:02:05]} 9. Nc3 {[%emt 0:01:49]} Rc8 {[%emt 0:02:56]} 10. Rc1 {[%emt 0:00:51]} Bg6 {[%emt 0:02:21]} 11. h4 {[%emt 0:01:33]} h5 {[%emt 0:01:36]} 12. Bg5 {[%emt 0:07:19]} Qb6 {[%emt 0:01:37]} 13. Nf3 {[%emt 0:00:08]} Nf5 {[%emt 0:01:51]} 14. Na4 {[%emt 0:01:11]} Bxb4+ {[%emt 0:09:13]} 15. axb4 {[%emt 0:00:27]} Qxb4+ {[%emt 0:00:57]} 16. Bd2 {[%emt 0:00:22]} Qe7 {[%emt 0:02:13]} 17. Bb5 {[%emt 0:04:30]} O-O {[%emt 0:04:25]} 18. Bxc6 {[%emt 0:02:54]} bxc6 {[%emt 0:00:18]} 19. Nc5 {[%emt 0:03:49]} Rb8 {[%emt 0:03:20]} 20. Qa4 {[%emt 0:02:38]} Rb6 {[%emt 0:05:45]} 21. Bg5 {[%emt 0:04:10]} f6 {[%emt 0:07:08]} 22. Bf4 {[%emt 0:00:31]} Ra8 {[%emt 0:02:31]} 23. O-O {[%emt 0:00:42]} a5 {[%emt 0:01:41]} 24. Rfe1 {[%emt 0:01:09]} Bf7 {[%emt 0:01:34]} 25. Rb1 {[%emt 0:03:18]} Qa7 {[%emt 0:04:44]} 26. exf6 {[%emt 0:00:51]} gxf6 {[%emt 0:01:05]} 27. Rxb6 {[%emt 0:07:08]} Qxb6 {[%emt 0:00:08]} 28. Qc2 {[%emt 0:02:09]} Ng7 {[%emt 0:03:17]} 29. Nxe6 {[%emt 0:01:29]} Bxe6 {[%emt 0:03:44]} 30. Qg6 {[%emt 0:02:31]} Bf7 {[%emt 0:04:35]} 31. Qxf6 {[%emt 0:00:12]} Re8 {[%emt 0:03:26]} 32. Be5 {[%emt 0:01:37]} Rxe5 {[%emt 0:02:03]} 33. Nxe5 {[%emt 0:00:38]} Be8 {[%emt 0:01:35]} 34. Nd7 {[%emt 0:05:56]} Bxd7 {[%emt 0:04:23]} 35. Re7 {[%emt 0:00:27]} Qb1+ {[%emt 0:02:48]} 36. Kh2 {[%emt 0:00:02]} Qb8+ {[%emt 0:03:14]} 37. g3 {[%emt 0:00:07]} Qf8 {[%emt 0:00:48]} 38. Qxf8+ {[%emt 0:00:10]} Kxf8 {[%emt 0:00:04]} 39. Rxd7 {[%emt 0:00:06]} Ne6 {[%emt 0:00:56]} 40. Ra7 {[%emt 0:01:32]} Nxd4 {[%emt 0:00:10]} 41. Rxa5 {[%emt 0:00:31]} Kf7 {[%emt 0:00:31]} 42. Ra4 {[%emt 0:01:53]} Ne6 {[%emt 0:02:15]} 43. Kg2 {[%emt 0:02:54]} Kf6 {[%emt 0:01:07]} 44. Kf3 {[%emt 0:00:08]} Kf5 {[%emt 0:03:19]} 45. Ra7 {[%emt 0:00:55]} c5 {[%emt 0:02:49]} 46. Rh7 {[%emt 0:00:28]} Nd4+ {[%emt 0:01:18]} 47. Ke3 {[%emt 0:00:28]} Kg6 {[%emt 0:00:45]} 48. Rd7 {[%emt 0:00:40]} Nc2+ {[%emt 0:01:52]} 49. Kd2 {[%emt 0:05:35]} Nb4 {[%emt 0:00:50]} 50. f3 {[%emt 0:01:04]} Kf6 {[%emt 0:01:28]} 51. Rh7 {[%emt 0:00:37]} Kg6 {[%emt 0:00:24]} 52. Rc7 {[%emt 0:00:52]} c4 {[%emt 0:00:43]} 53. Rc5 {[%emt 0:00:40]} Kf6 {[%emt 0:02:12]} 54. Rb5 {[%emt 0:01:36]} Na2 {[%emt 0:00:40]} 55. Kc2 {[%emt 0:01:16]} d4 {[%emt 0:01:42]} 56. Rxh5 {[%emt 0:04:44]} c3 {[%emt 0:00:23]} 57. Rb5 {[%emt 0:00:47]} Kg6 {[%emt 0:00:40]} 58. h5+ {[%emt 0:00:22]} Kh6 {[%emt 0:00:22]} 59. g4 {[%emt 0:00:09]} Kh7 {[%emt 0:00:39]} 60. g5 {[%emt 0:00:07]} Kg7 {[%emt 0:00:21]} 61. Rb7+ {[%emt 0:00:05]} Kh8 {[%emt 0:00:16]} 62. h6 {[%emt 0:00:12]} Kg8 {[%emt 0:00:19]} 63. g6 {[%emt 0:00:08]} d3+ {[%emt 0:01:46]} 1-0

[Event "1000GM Schev-C-C February 2024"]
[Site "Santa Clara"]
[Date "2024.02.26"]
[Round "5.1"]
[White "Ganesan, Vikrant"]
[Black "Garcia Lopez, Miguel Angel"]
[Result "1/2-1/2"]
[ECO "A22"]
[WhiteElo "1870"]
[BlackElo "2262"]
[Annotator "TA"]
[PlyCount "126"]
[EventDate "2024.02.13"]
[EventType "schev"]
[EventCountry "USA"]
[SourceTitle "playchess.com"]
[Source "ChessBase"]
[SourceQuality "1"]
[TimeControl "5400+30"]

{[%evp 9,126,16,20,22,29,18,21,11,35,25,27,42,16,33,95,75,106,49,89,76,149,153,113,-222,58,54,62,57,129,132,124,133,127,120,167,168,225,222,215,230,229,229,239,225,242,179,174,171,188,152,343,343,345,79,79,72,72,65,79,72,72,50,50,50,85,85,85,85,85,85,85,85,85,85,85,85,85,85,85,85,85,85,85,85,85,85,85,85,85,85,85,85,85,85,85,0,85,36,85,85,85,85,85,36,85,85,29978,85,12788,2818,2319,85,85,85,85,85,85,0,85]} 1. c4 {[%emt 0:04:04]} e5 {[%emt 0:00:07]} 2. Nc3 {[%emt 0:00:18]} Nf6 {[%emt 0:00:08]} 3. Nf3 {[%emt 0:00:32]} e4 {[%emt 0:00:07]} 4. Ng5 {[%emt 0:00:03]} b5 {[%emt 0:00:07]} 5. Ngxe4 {[%emt 0:01:41]} Nxe4 {[%emt 0:00:34]} 6. Nxe4 {[%emt 0:00:04]} bxc4 {[%emt 0:00:08]} 7. e3 {[%emt 0:01:27][%cal Od1a4]} d5 {[%emt 0:03:35]} 8. Nc3 {[%emt 0:00:47]} c6 {[%emt 0:01:08]} 9. d3 {[%emt 0:07:15]} cxd3 {[%emt 0:00:31]} 10. Bxd3 {[%emt 0:00:17]} Bd6 {[%emt 0:01:13]} 11. O-O {[%emt 0:00:36]} Qh4 {[%emt 0:05:43]} (11... f5 $14) 12. g3 $16 {[%emt 0:01:34]} Qh3 {[%emt 0:06:35]} 13. Re1 {[%emt 0:19:24]} (13. e4 $16 O-O 14. Be2 (14. exd5 Bg4 $16)) 13... O-O {[%emt 0:01:26]} 14. e4 {[%emt 0:02:52]} (14. Bf1 {vereinfacht} Qg4 15. e4 Qxd1 16. Rxd1 Bg4 17. Rd2) 14... Bb4 {[%emt 0:04:37]} ({Günstiger ist} 14... Bg4 15. Bf1 Qh5) 15. exd5 {[%emt 0:02:49]} cxd5 {[%emt 0:01:15] [#]} 16. Bxh7+ $2 {[%emt 0:12:21][%mdl 8192]} Qxh7 {[%emt 0:06:26]} (16... Kxh7 $19 17. Bd2 Nc6 18. Nxd5 Bxd2 19. Qxd2 Qf5) 17. Qxd5 $14 {[%emt 0:03:53]} Nc6 {[%emt 0:00:59]} 18. Qxc6 {[%emt 0:00:41]} Bxc3 {[%emt 0:01:06]} (18... Rb8 $14) 19. Re8 $16 {[%emt 0:07:08] Weiß steht aktiver.} (19. Qxc3 Qh3) (19. bxc3 Bh3 $14) 19... Bd7 {[%emt 0:02:43]} 20. Rxf8+ {[%emt 0:00:17]} (20. Qxa8 $2 Rxe8 $19) 20... Rxf8 {[%emt 0:00:07]} 21. Qxd7 {[%emt 0:00:21]} (21. Qxc3 Rc8 22. Qd4 Qh3 $17) 21... Bf6 {[%emt 0:00:24]} (21... Qc2 $16 {war angesagt.}) 22. Qxa7 {[%emt 0:01:12]} Rd8 {[%emt 0:00:13]} (22... Qc2 $142) 23. Be3 {[%emt 0:00:47]} Bxb2 {[%emt 0:00:51]} 24. Qb6 {[%emt 0:00:52][%csl LRb2,LRd8][%cal Rb6d8]} Bf6 {[%emt 0:00:20]} 25. Rc1 {[%emt 0:02:55] Lässt Qc2 nicht zu} Qe4 {[%emt 0:00:30]} 26. Qb3 {[%emt 0:05:54]} Rd3 {[%emt 0:02:18]} 27. Qb8+ {[%emt 0:00:42]} Kh7 {[%emt 0:03:17]} 28. Qf4 {[%emt 0:00:09]} Qd5 {[%emt 0:01:50]} 29. Qg4 {[%emt 0:01:56] Gegen Rd1+ gerichtet.} Rc3 $2 {[%emt 0:03:19]} (29... Bd4 $16 {ist wohl besser.}) 30. Rxc3 $18 {[%emt 0:02:29]} Bxc3 {[%emt 0:00:21][%mdl 4096] Endspiel. KQB-KQB} 31. h4 $2 {[%emt 0:00:23]} (31. a4 $18 {bietet bessere Gewinnchancen.}) 31... Qxa2 $16 {[%emt 0:01:38]} 32. Qf5+ {[%emt 0:00:26]} g6 {[%emt 0:00:12]} 33. Qe4 {[%emt 0:01:39]} Qa5 {[%emt 0:02:56]} 34. Kg2 {[%emt 0:02:37]} Bg7 {[%emt 0:01:12]} 35. g4 {[%emt 0:03:57]} f5 {[%emt 0:00:47]} 36. gxf5 {[%emt 0:00:27]} Qxf5 {[%emt 0:02:56]} 37. Qxf5 {[%emt 0:00:35]} gxf5 $14 {[%emt 0:00:10] KB-KB} 38. h5 {[%emt 0:00:24]} Be5 {[%emt 0:01:16]} 39. Kh3 {[%emt 0:05:07]} Kg7 {[%emt 0:46:55]} 40. Kh4 {[%emt 0:00:24] Kg5 wäre nun fies.} Bf6+ {[%emt 0:00:00]} 41. Kg3 {[%emt 0:01:32]} Be5+ {[%emt 0:00:00]} 42. Bf4 {[%emt 0:00:25]} Bd4 {[%emt 0:00:00]} 43. Kf3 {[%emt 0:01:51]} Kf6 {[%emt 0:00:00]} 44. Ke2 {[%emt 0:01:21]} Bc5 {[%emt 0:00:00]} 45. f3 {[%emt 0:00:08]} Bb4 {[%emt 0:00:00]} 46. Kd3 {[%emt 0:00:26]} Ba3 {[%emt 0:00:00]} 47. Kc4 {[%emt 0:00:46]} Bf8 {[%emt 0:00:00]} 48. Kd5 {[%emt 0:00:04]} Ba3 {[%emt 0:00:00]} 49. Bh6 {[%emt 0:01:02]} Bb4 {[%emt 0:00:00]} 50. Kc6 {[%emt 0:01:33]} Ba3 {[%emt 0:00:00]} 51. Kd7 {[%emt 0:00:36]} Bb4 {[%emt 0:00:00]} 52. Kc6 {[%emt 0:01:47]} (52. Be3 $16) 52... Ke6 {[%emt 0:00:00]} (52... Ba3 $1 $11 {bleibt in der Remisbreite.}) 53. Bg7 {[%emt 0:04:10]} (53. Kb5 $16 Be7 54. Kc4) 53... Kf7 {[%emt 0:00:00]} (53... Bd2 $14) 54. Be5 $16 {[%emt 0:00:00]} Bd2 {[%emt 0:00:00]} 55. Kd5 {[%emt 0:00:00]} Bg5 {[%emt 0:00:00]} 56. Bg3 {[%emt 0:00:43]} ({Vorzuziehen ist} 56. Bb2 $16) 56... Bf6 {[%emt 0:00:00]} (56... Kg7 $1 $14) 57. Bf4 {[%emt 0:00:28] Und Be3 würde nun gewinnen.} Bg7 $2 {[%emt 0:00:00][%mdl 8192]} (57... Bc3 $16) 58. Bg5 $2 {[%emt 0:00:23]} (58. h6 {setzt Matt} Bf8 59. h7 Bg7 60. Be5 Kg6 61. h8=Q (61. h8=R Bxh8 62. Bxh8 Kf7 63. f4 Kg8 64. Bc3 Kf7 65. Ke5 Ke7 66. Kxf5 Kd6) 61... Bxh8 62. Bxh8 Kf7 63. f4) 58... Bb2 $2 {[%emt 0:00:00][%mdl 8192] [#]} (58... Bc3 $16 59. Be3 Kg8) 59. Be3 $1 $18 {[%emt 0:00:42] Schwarz muss nun Bd4 beachten.} Bf6 {[%emt 0:00:00]} 60. Bd4 $2 {[%emt 0:00:21]} (60. Ba7 $18 Bg7 61. Bc5) 60... Bg5 $16 {[%emt 0:00:00]} 61. Be5 {[%emt 0:00:22]} Bh4 {[%emt 0:00:00]} 62. Bh8 {[%emt 0:00:34] Und jetzt Ke5 wäre schön.} Kg8 {[%emt 0:00:00]} 63. Be5 {[%emt 0:00:20]} Kf7 {[%emt 0:11:04] Gewichteter Fehlerwert: Weiß=0.51/Schwarz=0.43.  Verlustzug:     	Weiß=1     	Schwarz=3     Gewinn verpasst:   	Weiß=2     	Schwarz=1     Fehler:       	Weiß=4     	Schwarz=8     Ungenau:       	---       	Schwarz=3     OK:         	Weiß=18    	Schwarz=20    Bester:       	Weiß=4     	Schwarz=7} 1/2-1/2

[Event "1000GM Schev-C-C February 2024"]
[Site "Santa Clara"]
[Date "2024.02.26"]
[Round "5.2"]
[White "Vasquez Ramirez, Rocio"]
[Black "Yang, Maxwell"]
[Result "1/2-1/2"]
[ECO "B91"]
[WhiteElo "1999"]
[BlackElo "1946"]
[Annotator "RC"]
[PlyCount "76"]
[EventDate "2024.02.13"]
[EventType "schev"]
[EventCountry "USA"]
[SourceTitle "playchess.com"]
[Source "ChessBase"]
[SourceQuality "1"]
[TimeControl "5400+30"]

1. e4 {[%emt 0:00:07]} c5 {[%emt 0:00:06]} 2. Nf3 {[%emt 0:00:44]} d6 {[%emt 0:00:10]} 3. d4 {[%emt 0:00:24]} cxd4 {[%emt 0:00:08]} 4. Nxd4 {[%emt 0:00:03]} Nf6 {[%emt 0:00:06]} 5. Nc3 {[%emt 0:00:03]} a6 {[%emt 0:00:03]} 6. g3 {[%emt 0:00:32]} e5 {[%emt 0:01:25]} 7. Nde2 {[%emt 0:01:53]} Be7 {[%emt 0:01:54]} 8. Bg2 {[%emt 0:00:07]} Be6 {[%emt 0:00:55]} 9. a4 {[%emt 0:05:05]} O-O {[%emt 0:02:49]} 10. O-O {[%emt 0:00:06]} Qd7 {[%emt 0:01:10]} 11. Bg5 {[%emt 0:07:49]} Ng4 {[%emt 0:05:26]} 12. Bxe7 {[%emt 0:02:31]} Qxe7 {[%emt 0:00:16]} 13. Nd5 {[%emt 0:03:22]} Bxd5 {[%emt 0:01:45]} 14. Qxd5 {[%emt 0:00:19]} Nc6 {[%emt 0:00:11]} 15. c4 {[%emt 0:01:39]} Rac8 {[%emt 0:01:17]} 16. b3 {[%emt 0:00:39]} Qc7 {[%emt 0:03:45]} 17. h3 {[%emt 0:01:25]} Nf6 {[%emt 0:00:10]} 18. Qd3 {[%emt 0:03:45]} Nb4 {[%emt 0:00:59]} 19. Qd2 {[%emt 0:00:01]} Qc5 {[%emt 0:00:15]} 20. Rfd1 {[%emt 0:01:06]} Rfd8 {[%emt 0:01:34]} 21. Rac1 {[%emt 0:00:24]} Nc6 {[%emt 0:03:15]} 22. g4 {[%emt 0:02:30]} Qb4 {[%emt 0:02:57]} 23. Rc3 {[%emt 0:01:50]} Na5 {[%emt 0:06:21]} 24. Rd3 {[%emt 0:08:30]} Qxd2 {[%emt 0:02:11]} 25. R1xd2 {[%emt 0:00:03]} h6 {[%emt 0:05:12]} 26. c5 {[%emt 0:02:30]} d5 {[%emt 0:04:50]} 27. b4 {[%emt 0:03:29]} Nc6 {[%emt 0:01:31]} 28. b5 {[%emt 0:09:07]} axb5 {[%emt 0:02:21]} 29. axb5 {[%emt 0:00:10]} dxe4 {[%emt 0:08:09]} 30. Rd6 {[%emt 0:13:35]} Rxd6 {[%emt 0:05:40]} 31. Rxd6 {[%emt 0:00:21]} Na7 {[%emt 0:02:11]} 32. Nc3 {[%emt 0:02:29]} Rxc5 {[%emt 0:02:24]} 33. Nxe4 {[%emt 0:05:53]} Rc1+ {[%emt 0:03:20]} 34. Kh2 {[%emt 0:00:16]} Nxb5 {[%emt 0:01:00]} 35. Nxf6+ {[%emt 0:03:09]} gxf6 {[%emt 0:00:12]} 36. Rxf6 {[%emt 0:00:05]} Kg7 {[%emt 0:00:05]} 37. Rb6 {[%emt 0:00:19]} Nd4 {[%emt 0:00:14]} 38. Bxb7 {[%emt 0:07:40]} Rc2 {[%emt 0:00:55]} 1/2-1/2